[Event "26th Triest Festival 2024"]
[Site "Triest"]
[Date "2024.09.02"]
[Round "2.5"]
[White "Joly, Julien"]
[Black "Barp, Alberto"]
[Result "0-1"]
[Annotator "TA"]
[ECO "D02"]
[WhiteElo "2204"]
[BlackElo "2431"]
[PlyCount "131"]
[EventDate "2024.09.02"]
[EventType "swiss"]
[EventCountry "ITA"]
[SourceTitle "playchess.com"]
[Source "ChessBase"]
[SourceQuality "1"]
[TimeControl "5400+30"]

{[%evp 11,131,-2,21,12,22,21,17,8,21,0,0,0,0,3,17,15,17,15,11,8,6,-12,-13,-13,-13,-16,-11,-16,-15,-8,0,0,0,0,0,0,0,-10,0,0,0,-110,-22,-84,-86,-81,-76,-95,-55,-66,0,0,0,0,0,0,0,0,0,0,0,-18,-20,-18,-18,-198,-117,-127,-130,-148,-143,-202,-203,-215,-211,-274,-228,-207,-163,-570,-570,-562,-515,-529,-485,-477,-473,-379,-310,-776,-645,-842,-494,-1159,-1102,-1529,-1529,-1529,-1364,-1559,-1485,-1500,-1372,-1529,-611,-29968,-29968,-29962,-29962,-29973,-29975,-29974,-29974,-29976,-29976,-29974,-250,-250,-250,-250,-250,-6440]} 1. d4 {[%emt 0:03:27]} Nf6 {[%emt 0:00:37]} 2. Bf4 {[%emt 0:00:11]} e6 {[%emt 0:03:04]} 3. e3 {[%emt 0:00:06]} c5 {[%emt 0:00:23]} 4. Nd2 {[%emt 0:01:15]} Nc6 {[%emt 0:07:13]} 5. c3 {[%emt 0:01:05]} d5 {[%emt 0:00:06]} 6. Ngf3 {[%emt 0:00:04]} cxd4 {[%emt 0:00:05]} 7. exd4 {[%emt 0:00:05]} Nh5 {[%emt 0:00:05]} 8. Be3 {[%emt 0:00:06]} Bd6 {[%emt 0:00:06] [#]} 9. Ne5 $1 {[%emt 0:00:04] The position is equal.} Nf6 {[%emt 0:00:04]} (9... g6 10. Qa4) 10. Bf4 {[%emt 0:18:02]} Qc7 {[%emt 0:04:14][%cal Rc6e5]} 11. Bb5 {[%emt 0:04:52]} O-O {[%emt 0:06:34][%cal Rc6e5]} 12. Qe2 {[%emt 0:03:38]} Nd7 {[%emt 0:10:23]} 13. Nxd7 {[%emt 0:02:39]} Bxd7 {[%emt 0:00:09]} 14. Bxd6 {[%emt 0:00:11]} Qxd6 {[%emt 0:00:03]} 15. O-O {[%emt 0:02:30]} a6 {[%emt 0:22:28]} 16. Bd3 {[%emt 0:00:15]} e5 {[%emt 0:00:10]} 17. dxe5 {[%emt 0:15:35]} Nxe5 {[%emt 0:00:06]} 18. Qe3 {[%emt 0:16:37]} Rfe8 {[%emt 0:08:15]} 19. Qd4 {[%emt 0:03:05][%cal Od2c4]} Qh6 {[%emt 0:09:18]} 20. Rfd1 {[%emt 0:08:15]} Nxd3 {[%emt 0:12:57]} 21. Qxd3 {[%emt 0:00:03][%cal Od2f3]} Bb5 {[%emt 0:00:11]} 22. Qd4 {[%emt 0:06:52][%cal Od1e1]} Re2 {[%emt 0:00:12]} 23. a4 {[%emt 0:01:16]} Bc6 {[%emt 0:02:17]} 24. h3 {[%emt 0:03:31]} Rae8 {[%emt 0:01:20]} 25. b4 {[%emt 0:00:32]} Qg6 {[%emt 0:01:05]} 26. a5 {[%emt 0:08:33]} (26. Nf3 $11) 26... h6 {[%emt 0:01:03]} (26... R8e3 $1 $17 {[%cal Re3d3] ...Rd3 would now be deadly.} 27. Nf1 Rf3 (27... Rxh3 $2 28. Re1 $19)) 27. Qg4 {[%emt 0:00:36]} (27. Nf3 $11 {remains equal.}) 27... Qf6 $17 {[%emt 0:03:06][%csl LRc3,LRf2]} 28. Qd4 {[%emt 0:00:02]} Qxd4 {[%emt 0:04:46]} 29. cxd4 {[%emt 0:00:01]} Bb5 {[%emt 0:00:14]} 30. Nf1 {[%emt 0:00:57]} Rb2 {[%emt 0:01:47] Black has more active pieces.} (30... R8e6 $1 $15 31. Ng3 Rb2) 31. Ne3 $11 {[%emt 0:00:01]} Rxb4 {[%emt 0:01:37]} 32. Nxd5 {[%emt 0:00:02]} Rb2 {[%emt 0:00:57]} 33. Ne3 {[%emt 0:00:10]} f5 {[%emt 0:01:10]} 34. g3 {[%emt 0:01:35][%cal Od4d5]} f4 {[%emt 0:00:48]} 35. gxf4 {[%emt 0:00:09]} Re4 $36 {[%emt 0:00:08][%mdl 2048] Black has some pressure.} 36. f5 {[%emt 0:01:24]} Rf4 {[%emt 0:00:39][%cal Of4f3]} 37. d5 $1 {[%emt 0:00:11]} Rfxf2 {[%emt 0:00:27]} 38. d6 $2 {[%emt 0:00:09]} (38. Rab1 $1 $11 {and White is okay.}) 38... Rfe2 {[%emt 0:00:35]} (38... Rf3 $19 {( -> ...Rg3+)} 39. Nf1 Rxf5 (39... Rxh3 40. d7 $11)) 39. Re1 {[%emt 0:00:26]} Rxe1+ {[%emt 0:00:42]} 40. Rxe1 $17 {[%emt 0:00:01][%cal Oe3c4][%mdl 4096] Endgame. KRB-KRN} Rd2 {[%emt 0:00:04]} 41. Rd1 {[%emt 0:00:26]} (41. Rc1 $17 {is a better defense.}) 41... Rxd1+ $19 {[%emt 0:00:05]} 42. Nxd1 {[%emt 0:00:09] KB-KN} Kf7 {[%emt 0:00:15] [#] Strongly threatening ...Kf6.} 43. Nc3 {[%emt 0:02:04]} Bc6 {[%emt 0:00:07] Against Ne4. White must now prevent ...Kf6.} 44. Ne2 {[%emt 0:00:20]} Ke8 {[%emt 0:01:54] And now ...Kd7 would win.} 45. Nf4 $2 {[%emt 0:00:45]} (45. Kf2 {is a better chance.}) 45... Kd7 {[%emt 0:00:11]} 46. Nh5 {[%emt 0:00:19]} Kxd6 {[%emt 0:00:06]} 47. Nxg7 {[%emt 0:00:02]} Ke5 {[%emt 0:00:09]} 48. Kf2 {[%emt 0:00:17]} Kf6 {[%emt 0:00:40]} 49. Ne6 {[%emt 0:00:22]} Kxf5 {[%emt 0:00:09]} 50. Nd4+ {[%emt 0:00:48]} (50. Ng7+ Kg5 51. Ne6+ Kh4 52. Nf4) 50... Ke4 {[%emt 0:00:10]} 51. Ne6 {[%emt 0:00:51]} Ke5 {[%emt 0:01:02]} 52. Ng7 {[%emt 0:00:38]} (52. Nd8 $142 Kf6 53. Kg3) 52... Be4 {[%emt 0:01:07]} 53. Nh5 {[%emt 0:00:05]} Bg6 {[%emt 0:00:25]} 54. Ng3 {[%emt 0:00:03]} Kd4 {[%emt 0:00:37]} 55. h4 {[%emt 0:00:20]} Kc5 {[%emt 0:00:21]} 56. h5 {[%emt 0:00:09]} Bf7 {[%emt 0:00:38]} 57. Nf5 {[%emt 0:01:13]} Bxh5 {[%emt 0:00:44]} 58. Nxh6 {[%emt 0:00:28]} Kb4 {[%emt 0:00:11]} 59. Ke3 {[%emt 0:00:15]} Kxa5 {[%emt 0:00:04]} 60. Kd3 {[%emt 0:00:14]} Kb4 {[%emt 0:00:55]} 61. Kc2 {[%emt 0:00:01]} Ka3 {[%emt 0:00:30]} ({Weaker is} 61... Bg6+ 62. Kb2 $17) 62. Kb1 {[%emt 0:00:04]} b5 {[%emt 0:00:43]} (62... Bg6+ 63. Ka1 b5 64. Nf5 $19) 63. Nf5 {[%emt 0:00:23]} b4 $2 {[%emt 0:00:48]} (63... Kb3 {mates} 64. Ng7 Bg4 (64... Bg6+ $2 65. Ka1 $19) 65. Ne8 b4 (65... Bf5+ $2 66. Ka1 $19) 66. Nf6 Bf5+ 67. Kc1 Ka3 (67... a5 $2 68. Nd5 $19) 68. Nd5 b3 69. Kd1 b2 70. Nc3 Kb4 (70... b1=R+ {gets mated.} 71. Ke2 Kb3 72. Nd5 a5 73. Ne3 Rb2+ 74. Kf3 Bd3 75. Kf4 a4 76. Ng4 a3 77. Ne5 Be2 78. Nc6 a2 79. Nd4+ Kc3 80. Nf5 a1=Q 81. Ng3 Qg1 82. Ne4+ Kd3 83. Kf5 Rb6 84. Nd6 Rxd6 85. Ke5 Qd4+ 86. Kf5 Qf6#) 71. Kd2 Kb3 (71... b1=B $2 72. Nd5+ Kc4 73. Nc7 $19) 72. Ne2 b1=Q (72... b1=B 73. Nd4+ Kb2 74. Ke3 $19) 73. Ke3 Qe4+ 74. Kf2 Bg4 (74... Qh4+ {leads to mate.} 75. Ng3 Bg4 76. Kg2 Kc3 77. Kf1 Qh3+ 78. Kf2 Qh2+ 79. Ke1 Qd2+ 80. Kf1 Bh3+ 81. Kg1 Qg2#) (74... Kc2 75. Ng3 Qf4+ 76. Kg2 Bg4 77. Nf1 Qf3+ 78. Kg1 Bh3 79. Ne3+ Qxe3+ 80. Kh2 Qf3 81. Kg1 Qg2#) 75. Ng1 Qf4+ 76. Ke1 Qd4 77. Kf1 Qd2 78. Ne2 Qxe2+ 79. Kg1 Bh3 80. Kh1 Qg2#) 64. Nd4 {[%emt 0:00:59] Black is clearly better.} a5 {[%emt 0:00:07]} 65. Ka1 {[%emt 0:00:37]} Bd1 {[%emt 0:01:34]} 66. Nc2+ $2 {[%emt 0:00:00] Weighted Error Value: White=0.58/Black=0.30.  Loses game:     	White=1     	---        Mistake:       	White=6     	Black=3      Inaccurate:     	White=2     	Black=1      OK:         	White=15    	Black=25     Best:        	White=5     	Black=5      Strong:       	White=1     	---} (66. Kb1 Bh5 67. Ka1) 0-1

[Event "26th Triest Festival 2024"]
[Site "Triest"]
[Date "2024.09.02"]
[Round "2.6"]
[White "Doric, Darko"]
[Black "Maldonado Gonzales, Stefano"]
[Result "1-0"]
[Annotator "TA"]
[ECO "A15"]
[WhiteElo "2443"]
[BlackElo "2187"]
[PlyCount "67"]
[EventDate "2024.09.02"]
[EventType "swiss"]
[EventCountry "ITA"]
[SourceTitle "playchess.com"]
[Source "ChessBase"]
[SourceQuality "1"]
[TimeControl "5400+30"]

{[%evp 13,67,4,4,0,23,-3,5,0,9,7,4,0,6,-5,-14,-8,-9,6,0,0,42,0,0,0,0,0,0,0,0,-15,0,0,0,-8,0,-12,0,-9,18,21,157,147,145,153,361,362,347,308,335,327,360,308,342,362,358,348]} 1. Nf3 {[%emt 0:00:25]} Nf6 {[%emt 0:02:51]} 2. g3 {[%emt 0:00:15]} b6 {[%emt 0:00:25]} 3. Bg2 {[%emt 0:00:17]} Bb7 {[%emt 0:00:03]} 4. c4 {[%emt 0:00:32]} g6 {[%emt 0:00:06]} 5. b3 {[%emt 0:04:18]} Bg7 {[%emt 0:00:07]} 6. Bb2 {[%emt 0:00:10]} O-O {[%emt 0:00:07]} 7. O-O {[%emt 0:00:04]} e6 {[%emt 0:03:46]} 8. d4 {[%emt 0:05:48]} d6 {[%emt 0:00:05]} 9. Nbd2 {[%emt 0:01:27]} c5 {[%emt 0:07:13]} 10. Qc2 {[%emt 0:03:49] The position is equal.} Nc6 {[%emt 0:03:31]} 11. Rad1 {[%emt 0:01:23]} Qe7 {[%emt 0:08:41]} 12. e3 {[%emt 0:02:33]} Rfd8 {[%emt 0:03:28]} 13. Qb1 {[%emt 0:05:35]} cxd4 {[%emt 0:07:02]} 14. Nxd4 {[%emt 0:00:43]} Nxd4 {[%emt 0:00:04]} 15. Bxd4 {[%emt 0:00:09]} Bxg2 {[%emt 0:00:15]} 16. Kxg2 {[%emt 0:00:12]} d5 {[%emt 0:00:58]} 17. Bxf6 {[%emt 0:05:17]} Bxf6 {[%emt 0:01:32]} 18. cxd5 {[%emt 0:00:09]} Rxd5 {[%emt 0:03:01]} 19. Nf3 {[%emt 0:00:39]} Rc5 {[%emt 0:09:31]} 20. Rc1 {[%emt 0:07:57]} Rac8 {[%emt 0:01:01]} 21. Rfd1 {[%emt 0:02:07][%cal Bf1d1,Bd1d2,Bd2d7][%mdl 32]} a5 {[%emt 0:12:13]} 22. Rxc5 {[%emt 0:05:10]} Qxc5 {[%emt 0:00:21]} 23. Rd2 {[%emt 0:01:09]} Qc6 {[%emt 0:07:42]} 24. Qd1 {[%emt 0:00:41]} Kg7 {[%emt 0:05:15]} 25. Rd7 {[%emt 0:06:19]} Qc2 {[%emt 0:04:03]} 26. Qd6 {[%emt 0:01:32][%csl LRb6,LRe6]} (26. Qxc2 {simplifies} Rxc2 27. a4 g5 28. h3) 26... Rc6 {[%emt 0:03:34] [#]} (26... Qc6 $1 $11) 27. Qb8 $1 $40 {[%emt 0:03:51][%mdl 128] White is out for blood.} Rc8 {[%emt 0:05:56]} 28. Qxb6 {[%emt 0:01:00]} Qf5 {[%emt 0:02:27] [#] A mistake that costs the game.} (28... Qc6 $16 {is a better defense.} 29. Qa7 (29. Qxa5 $2 {too greedy.} Qxd7 30. g4 Qd5 $19) 29... Rf8) 29. Rxf7+ $3 $18 {[%emt 0:01:08][%mdl 512]} Kxf7 {[%emt 0:00:05]} 30. Qb7+ {[%emt 0:00:06]} Be7 {[%emt 0:00:24]} 31. Qxc8 {[%emt 0:00:03]} Qd5 {[%emt 0:01:18]} 32. Qc4 {[%emt 0:01:35]} Qxc4 {[%emt 0:02:55]} 33. bxc4 {[%emt 0:00:05]} (33. Ne5+ Kf6 34. Nxc4 Bb4 $18) 33... Bf6 {[%emt 0:00:04]} 34. Ne1 {[%emt 0:01:46] Weighted Error Value: White=0.09 (flawless) /Black=0.25 (precise) .  Loses game:     	---       	Black=1      Mistake:       	---       	Black=1      Inaccurate:     	White=2     	Black=2      OK:         	White=11    	Black=7} 1-0

[Event "26th Triest Festival 2024"]
[Site "Triest"]
[Date "2024.09.02"]
[Round "2.7"]
[White "Schlegel, Igor"]
[Black "Lumachi, Gabriele"]
[Result "1-0"]
[Annotator "TA"]
[ECO "B12"]
[WhiteElo "2212"]
[BlackElo "2440"]
[PlyCount "79"]
[EventDate "2024.09.02"]
[EventType "swiss"]
[EventCountry "ITA"]
[SourceTitle "playchess.com"]
[Source "ChessBase"]
[SourceQuality "1"]
[TimeControl "5400+30"]

{[%evp 10,79,33,31,45,32,33,29,39,21,14,35,58,60,107,87,93,115,92,95,157,137,150,145,152,144,129,135,170,183,193,115,130,115,102,93,110,101,331,299,295,208,208,191,609,470,593,598,605,596,637,627,920,880,908,933,1183,1043,1075,1080,1241,1019,5143,3217,29988,5314,29985,29985,29990,29991,29991,29992]} 1. e4 {[%emt 0:00:08]} c6 {[%emt 0:01:25]} 2. d4 {[%emt 0:00:07]} d5 {[%emt 0:00:05]} 3. e5 {[%emt 0:00:24]} Bf5 {[%emt 0:00:06]} 4. Nf3 {[%emt 0:00:05]} e6 {[%emt 0:00:05]} 5. Be2 {[%emt 0:00:04]} Nd7 {[%emt 0:00:06]} 6. O-O {[%emt 0:00:14]} a5 {[%emt 0:00:04]} 7. a4 {[%emt 0:02:09]} f6 {[%emt 0:00:07]} 8. Nbd2 {[%emt 0:00:45]} Nh6 {[%emt 0:00:07] White has an edge.} 9. Re1 {[%emt 0:16:51]} fxe5 {[%emt 0:19:41]} 10. dxe5 {[%emt 0:01:25]} Bc5 {[%emt 0:00:11][%cal Oc5f2]} 11. Nb3 {[%emt 0:01:25]} Ba7 {[%emt 0:00:09] [#]} (11... O-O $14) 12. Nfd4 $1 $16 {[%emt 0:05:28]} O-O {[%emt 0:01:04]} 13. Bxh6 {[%emt 0:40:49]} gxh6 {[%emt 0:00:05]} 14. Bg4 {[%emt 0:00:07]} Be4 {[%emt 0:13:24]} ({Better is} 14... Bxg4 15. Qxg4+ Kh8 16. Qxe6 (16. Nxe6 Bxf2+ 17. Kh1 Rg8 $16) 16... Nc5 17. Nxc5 (17. Qxh6 Nxb3 18. Ne6 Bxf2+ 19. Kh1 Qe7 $17) 17... Bxc5) 15. Bxe6+ {[%emt 0:07:12]} (15. Nxe6 Rxf2 (15... Bxf2+ 16. Kh1 $11) 16. Rxe4 Rd2+ 17. Kh1 Rxd1+ 18. Rxd1 Qe7 $17) 15... Kh8 {[%emt 0:00:57]} 16. f3 {[%emt 0:10:28] Active counter play!} Bg6 {[%emt 0:23:28]} 17. Kh1 {[%emt 0:00:09]} Qe7 {[%emt 0:04:22]} 18. Qd2 {[%emt 0:02:10]} (18. Nxa5 Bxd4 19. Qxd4 Qxe6 (19... Rxa5 20. Bxd7 Qxd7 21. e6+ Qg7 22. e7 $11) 20. Nxb7 Rfb8 $17 (20... Bxc2 21. a5 $11)) 18... Nb6 {[%emt 0:12:21]} 19. Bh3 {[%emt 0:04:20]} (19. Nxa5 $6 Nc4 (19... c5 20. Ndb3 $15) 20. Nxc4 (20. Qxh6 $2 Nxa5 21. Ne2 Qxe6 $19) 20... dxc4 $14) 19... Nc4 {[%emt 0:03:02]} 20. Qc3 {[%emt 0:00:42]} (20. Qxh6 $18 Qf7 21. Ne6) 20... Qb4 {[%emt 0:01:12]} 21. Qxb4 {[%emt 0:03:48]} axb4 {[%emt 0:00:02]} 22. e6 {[%emt 0:00:11] Strongly threatening e7.} (22. a5 {simplifies} Bxd4 23. Nxd4 Rxa5 24. Rxa5 Nxa5 25. Bd7) 22... Rae8 {[%emt 0:08:54][%cal Of8f4,Ba8e8,Be8f8,Bf8f2][%mdl 32]} 23. a5 {[%emt 0:00:43] a6 would now be deadly.} c5 $2 {[%emt 0:01:39] This move loses the game for Black.} (23... Bxd4 $16 24. Nxd4 Re7) 24. Nb5 $18 {[%emt 0:01:05]} Bxc2 {[%emt 0:00:06]} 25. Nxa7 {[%emt 0:01:24]} Bxb3 {[%emt 0:00:13]} 26. e7 {[%emt 0:00:30]} d4 $2 {[%emt 0:09:10]} (26... Rg8 27. Bd7 d4) 27. exf8=Q+ {[%emt 0:00:15]} Rxf8 {[%emt 0:00:07]} 28. Be6 {[%emt 0:00:25]} d3 {[%emt 0:00:18]} 29. Re4 {[%emt 0:00:56]} Nd2 {[%emt 0:01:44] [#]} 30. Bxb3 $1 {[%emt 0:00:24]} Nxe4 {[%emt 0:00:31]} (30... Nxb3 31. Rd1) 31. fxe4 {[%emt 0:00:06][%cal Bf3e4,Be4e5,Be5e6][%mdl 32]} Rf2 {[%emt 0:00:07]} 32. e5 {[%emt 0:01:09]} Rxb2 {[%emt 0:00:20] [#]} 33. e6 $1 {[%emt 0:00:20]} Re2 {[%emt 0:00:09]} 34. Kg1 {[%emt 0:00:39] Nc8 is the strong threat.} d2 {[%emt 0:01:18]} 35. Kf1 {[%emt 0:00:09]} Re3 {[%emt 0:00:11] [#]} 36. Rd1 $1 {[%emt 0:00:46]} Rxb3 {[%emt 0:00:21]} (36... Kg7 37. Bd5) 37. Rxd2 {[%emt 0:00:01]} (37. Ke2 $142 Kg7 38. e7 (38. Kxd2 Kf6 $18) 38... c4 39. e8=Q (39. e8=R Rb2 $18) 39... Ra3 40. Qe7+ (40. Kxd2 Rd3+ 41. Ke2 Rxd1 $18) 40... Kg6 41. Rxd2 (41. Qxb4 Rb3 42. Qxc4 Rb2 43. Qg4+ Kf7 44. Rf1+ Ke7 45. Qe4+ Kd6 46. Rf6+ Kc5 47. Rf5+ Kd6 48. Rd5+ Kc7 49. Qf4#) 41... Rd3 42. Rxd3 (42. Qxb4 Rxd2+ 43. Kxd2 h5 44. Qd6+ Kf5 45. Qd5+ Kg6 46. Qe6+ Kg7) 42... cxd3+ 43. Kd2 (43. Kxd3 b3 44. Qxb7 h5 45. a6 b2 46. Qxb2 h4 47. Nc8 h6)) 37... Kg7 {[%emt 0:00:57]} 38. Re2 {[%emt 0:00:27] White mates.} Kf8 {[%emt 0:00:49]} 39. e7+ {[%emt 0:00:04]} Ke8 {[%emt 0:00:05]} 40. Nb5 {[%emt 0:00:03] Weighted Error Value: White=0.20 (precise) /Black=0.49.  Loses game:     	---       	Black=1      Mistake:       	White=1     	Black=3      Inaccurate:     	---       	Black=1      OK:         	White=7     	Black=10     Best:        	White=5     	Black=1      Strong:       	White=1     	---} 1-0

[Event "26th Triest Festival 2024"]
[Site "Triest"]
[Date "2024.09.02"]
[Round "2.8"]
[White "Zhou, Yang-Fan"]
[Black "Sepehrkhoui, Ardeshir"]
[Result "1-0"]
[Annotator "TA"]
[ECO "C43"]
[WhiteElo "2437"]
[BlackElo "2209"]
[PlyCount "70"]
[EventDate "2024.09.02"]
[EventType "swiss"]
[EventCountry "ITA"]
[SourceTitle "playchess.com"]
[Source "ChessBase"]
[SourceQuality "1"]
[TimeControl "5400+30"]

{[%evp 11,70,12,39,11,33,36,60,29,61,75,64,66,63,60,90,100,115,42,52,20,11,0,34,0,0,0,92,107,98,108,158,144,306,313,447,65,59,70,65,71,75,46,104,118,422,402,340,297,321,320,308,319,338,290,450,388,701,701,701,701,29992]} 1. e4 {[%emt 0:00:02]} e5 {[%emt 0:00:08]} 2. Nf3 {[%emt 0:00:07]} Nf6 {[%emt 0:00:02]} 3. d4 {[%emt 0:00:36]} Nxe4 {[%emt 0:00:23]} 4. Bd3 {[%emt 0:00:25]} Nc6 {[%emt 0:00:15][%cal Bb8c6,Bc6e5,Be5d3][%mdl 32]} 5. dxe5 {[%emt 0:05:51]} d5 {[%emt 0:03:42]} 6. exd6 {[%emt 0:04:46]} Nxd6 {[%emt 0:01:51]} 7. Nc3 {[%emt 0:01:40]} Bg4 {[%emt 0:13:24][%cal Bc8g4,Bg4h5,Bh5g6][%mdl 32]} 8. h3 {[%emt 0:10:25]} Bh5 {[%emt 0:12:32]} 9. Be3 {[%emt 0:02:37] White is slightly better.} Ne5 {[%emt 0:11:21]} 10. g4 {[%emt 0:06:43]} Nxd3+ {[%emt 0:00:42]} 11. Qxd3 {[%emt 0:00:01]} Bg6 {[%emt 0:00:12]} 12. Qe2 {[%emt 0:00:01][%cal Oe1c1] White is much more active. The black rooks are passive.} Be7 {[%emt 0:01:23]} 13. O-O-O {[%emt 0:00:19][%cal Ba1d1,Bd1d4,Bd4a4][%mdl 32]} Qd7 {[%emt 0:07:11]} 14. Nd5 {[%emt 0:05:27]} (14. Ne5 $16 Qe6 15. f4) 14... O-O-O $14 {[%emt 0:09:21] Black is weak on the dark squares} 15. Bxa7 {[%emt 0:04:48]} Rhe8 {[%emt 0:01:57][%cal Od7a4] [#] ...Qa4! is the strong threat.} 16. Be3 $36 {[%emt 0:23:07][%mdl 2048] Black is under pressure.} Bf8 $1 {[%emt 0:22:42]} 17. Nc3 {[%emt 0:01:52] Prevents Qb5.} f5 {[%emt 0:01:34]} 18. Rd4 {[%emt 0:03:25]} Qc6 {[%emt 0:06:26]} (18... f4 $1 $11 {keeps the balance.} 19. Rxf4 Ne4 20. Nxe4 Bxe4) 19. Rhd1 $16 {[%emt 0:01:31]} fxg4 {[%emt 0:03:12]} 20. hxg4 {[%emt 0:00:08]} h6 {[%emt 0:01:13]} (20... Bf7 $142) 21. Ra4 {[%emt 0:18:33] [#] And now Nd4 would win.} Kb8 $2 {[%emt 0:00:10]} (21... b5 $16 22. Nd4 Qb7 23. Ncxb5 (23. Ndxb5 Nxb5 24. Nxb5 Rxd1+ 25. Kxd1 Bc5 $16) 23... Nxb5 24. Qxb5 Re4) 22. Nd4 $18 {[%emt 0:00:07]} Qg2 {[%emt 0:00:28]} (22... Qd7 $142 23. Nf3 Qc6) 23. Nb3 $2 {[%emt 0:05:38] Excellent horsemanship.} ({White has to play} 23. Ne6 $18) 23... Nc8 $1 $14 {[%emt 0:00:54]} 24. Rad4 {[%emt 0:02:09]} Rxd4 {[%emt 0:00:05]} 25. Nxd4 {[%emt 0:00:04][%cal Od4e6]} (25. Rxd4 Bd6 $11) 25... Bc5 {[%emt 0:00:59]} 26. Qc4 {[%emt 0:00:55]} Rxe3 {[%emt 0:00:33]} 27. Qxc5 $16 {[%emt 0:00:43]} Qxf2 {[%emt 0:00:27][%mdl 8192]} (27... Re7 $16) 28. Nd5 $1 $18 {[%emt 0:01:30][%csl LRc7,LRe3]} Qg3 {[%emt 0:00:50]} 29. Nxe3 {[%emt 0:00:52]} Qxe3+ {[%emt 0:00:01]} 30. Kb1 {[%emt 0:00:07]} Qe4 {[%emt 0:00:35] Dodges Nc6+} 31. g5 {[%emt 0:00:49]} ({Don't take} 31. Nb5 c6) 31... h5 {[%emt 0:00:31]} 32. Nb5 {[%emt 0:00:31]} Qf4 {[%emt 0:00:15]} (32... c6 {was worth a try.}) 33. b3 {[%emt 0:00:22]} b6 $2 {[%emt 0:01:02]} (33... Be8 34. a4 b6) 34. Qc6 {[%emt 0:00:35]} Be4 {[%emt 0:00:36]} 35. Qc4 {[%emt 0:00:02]} Qf5 {[%emt 0:01:03] Weighted Error Value: White=0.38/Black=0.49.  Loses game:     	---       	Black=2      Missed win:     	White=1     	---        Mistake:       	White=1     	Black=6      Inaccurate:     	White=4     	Black=2      OK:         	White=7     	Black=11     Best:        	White=6     	---        Strong:       	---       	Black=2} 1-0

[Event "26th Triest Festival 2024"]
[Site "Triest"]
[Date "2024.09.02"]
[Round "2.9"]
[White "Djuric, Stefan"]
[Black "Wong, Zhenyong Jayden"]
[Result "1/2-1/2"]
[Annotator "TA"]
[ECO "E54"]
[WhiteElo "2208"]
[BlackElo "2397"]
[PlyCount "83"]
[EventDate "2024.09.02"]
[EventType "swiss"]
[EventCountry "ITA"]
[SourceTitle "playchess.com"]
[Source "ChessBase"]
[SourceQuality "1"]
[TimeControl "5400+30"]

{[%evp 15,83,0,11,-33,-18,-21,-21,-33,-27,-39,-16,-32,-25,-26,-14,-18,-7,-42,-16,-47,-54,-50,-19,-23,-18,-14,-10,-12,-10,-14,-16,-11,-12,-12,-11,-9,-12,-14,0,-5,0,-34,0,0,0,-13,-10,-31,-32,-22,-27,-24,0,-2,0,0,0,0,0,0,0,0,0,0,0,0,0,0,0,0]} 1. d4 {[%emt 0:10:01]} Nf6 {[%emt 0:01:02]} 2. c4 {[%emt 0:00:03]} e6 {[%emt 0:00:12]} 3. Nc3 {[%emt 0:00:06]} Bb4 {[%emt 0:04:17]} 4. e3 {[%emt 0:00:10]} O-O {[%emt 0:00:19]} 5. Bd3 {[%emt 0:00:07]} d5 {[%emt 0:00:26]} 6. Nf3 {[%emt 0:00:06]} dxc4 {[%emt 0:00:28]} 7. Bxc4 {[%emt 0:00:02]} c5 {[%emt 0:00:22]} 8. O-O {[%emt 0:00:12]} Nc6 {[%emt 0:02:55]} 9. h3 {[%emt 0:03:59]} cxd4 {[%emt 0:01:48]} 10. exd4 {[%emt 0:00:01]} b6 {[%emt 0:01:38]} 11. Bg5 {[%emt 0:04:01]} Bb7 {[%emt 0:00:43]} 12. Rc1 {[%emt 0:10:34]} Rc8 {[%emt 0:00:44][%cal Oc6d4]} 13. a3 {[%emt 0:04:48]} Be7 {[%emt 0:01:48][%cal Oc6d4]} 14. Ba2 {[%emt 0:04:24]} Nd5 {[%emt 0:07:26]} 15. Bxd5 {[%emt 0:11:01] [#] And now Bxe7 would win.} Bxg5 {[%emt 0:01:33]} 16. Nxg5 {[%emt 0:01:54]} Qxg5 {[%emt 0:00:14]} 17. Bxc6 {[%emt 0:00:10]} Bxc6 {[%emt 0:02:07]} 18. Qg4 {[%emt 0:00:22]} Qxg4 {[%emt 0:06:12]} (18... Qd2 {is interesting.} 19. Rb1 Rfd8 20. Rfd1 Qc2) 19. hxg4 {[%emt 0:00:01]} Rfd8 {[%emt 0:00:24]} 20. Rfd1 {[%emt 0:00:35]} Kf8 {[%emt 0:01:28]} 21. f3 {[%emt 0:00:20]} Rd7 {[%emt 0:06:59]} 22. Kf2 {[%emt 0:00:08]} Rcd8 {[%emt 0:00:19]} 23. Ke3 {[%emt 0:00:09]} h6 {[%emt 0:02:28]} 24. b4 {[%emt 0:02:23]} Ke7 {[%emt 0:07:47]} 25. b5 {[%emt 0:08:26]} Bb7 {[%emt 0:02:26]} 26. Ne4 {[%emt 0:05:47]} e5 {[%emt 0:06:53]} 27. Rc4 {[%emt 0:00:06]} g6 {[%emt 0:06:22]} 28. Nf2 {[%emt 0:05:30]} f5 {[%emt 0:05:57]} 29. gxf5 {[%emt 0:00:20]} gxf5 {[%emt 0:00:05]} 30. Rh1 {[%emt 0:01:53]} Rxd4 {[%emt 0:04:44]} 31. Rc7+ {[%emt 0:03:02]} (31. Rxd4 {simplifies} Rxd4 32. Rxh6 Bd5 33. Rh7+) 31... R8d7 {[%emt 0:00:41]} 32. Rxd7+ {[%emt 0:01:01]} Kxd7 {[%emt 0:00:10]} 33. Rxh6 $15 {[%emt 0:03:07][%mdl 4096] Endgame. KRB-KRN} Bd5 {[%emt 0:04:39]} 34. Rh7+ {[%emt 0:00:47] The position is equal.} Kd6 {[%emt 0:01:45]} 35. Rxa7 {[%emt 0:00:58]} Bc4 {[%emt 0:04:42][%csl Gd4,Ge5][%cal Rf5f4] [#]} 36. g3 {[%emt 0:00:12]} Bxb5 {[%emt 0:03:17]} 37. f4 {[%emt 0:00:05]} Rc4 {[%emt 0:02:25]} 38. fxe5+ {[%emt 0:05:11]} Kxe5 {[%emt 0:00:13]} 39. Kd2 {[%emt 0:00:45] Inhibits Rc3.} Rd4+ {[%emt 0:02:49]} 40. Ke3 {[%emt 0:00:20]} Rc4 {[%emt 0:01:31]} 41. Kd2 {[%emt 0:00:07] Inhibits Rc3.} Rd4+ {[%emt 0:00:05]} 42. Ke3 {[%emt 0:00:01] Weighted Error Value: White=0.07 (flawless) /Black=0.06 (flawless) .  Inaccurate:     	White=3     	Black=3      OK:         	White=19    	Black=12} 1/2-1/2